bitfinex-derivatives/quotes_SOLF0:USTF0_20250416
["timestamp","ask_amount","ask_price","bid_price","bid_amount"]
[1744811915637,0.06145458,124.91,124.88,0.05097071]
[1744811916239,16.0035,124.99,124.9,19.35374762]
[1744811916540,19.35374762,125.0,124.92,19.35374762]
[1744811917341,0.05129118,124.97,124.95,0.05418921]
[1744811918043,8.0032,124.96,124.95,0.05418921]
[1744811920246,0.05129118,124.97,124.9,4.323]
[1744811920451,0.05129118,124.97,124.78,86.0428]
[1744811920452,19.35374762,124.93,124.84,19.35374762]
[1744811920651,19.35374762,124.91,124.83,8.4443]
[1744811921048,19.35374762,124.93,124.84,19.35374762]
[1744811921449,8.06140242,124.9,124.87,0.05696492]
[1744811922151,0.05410242,124.9,124.87,0.05696492]
[1744811922754,8.06140242,124.9,124.87,0.05696492]
[1744811923249,8.0078,124.89,124.87,0.05696492]
[1744811923455,0.05410242,124.9,124.87,0.05696492]
[1744811924753,8.0083,124.88,124.87,0.05696492]
[1744811927952,0.05410242,124.9,124.87,0.05696492]
[1744811930852,8.06140242,124.9,124.87,0.05696492]
[1744811934257,8.0077,124.89,124.87,0.05696492]
[1744811936660,8.0081,124.89,124.87,0.05696492]
[1744811938659,0.05410242,124.9,124.87,0.05696492]
[1744811940463,19.40785004,124.9,124.87,0.05696492]
[1744811940660,19.35374762,124.88,124.83,8.4443]
[1744811940861,8.0099,124.86,124.83,8.4443]
[1744811941259,8.0099,124.86,124.83,4.0468]
[1744811941562,8.0103,124.85,124.83,4.0468]
[1744811941761,8.0103,124.85,124.83,4.09869837]
[1744811942767,8.0108,124.84,124.83,0.05189837]
[1744811943463,27.36454762,124.84,124.83,0.05189837]
[1744811949965,8.0108,124.84,124.83,0.05189837]
[1744811952471,8.0104,124.85,124.83,0.05189837]
[1744811952766,0.05540088,124.86,124.83,0.05189837]
[1744811952970,0.05540088,124.86,124.83,8.61669837]
[1744811953171,0.05540088,124.86,124.85,12.40934482]
[1744811953365,0.05540088,124.86,124.83,12.89119837]
[1744811953669,0.05540088,124.86,124.83,25.30054319]
[1744811953869,8.06530088,124.86,124.84,12.40934482]
[1744811954071,12.40934482,124.85,124.83,0.05189837]
[1744811954270,12.40934482,124.84,124.83,0.05189837]
[1744811954569,20.42014482,124.84,124.83,0.05189837]
[1744811956876,8.0108,124.84,124.83,0.05189837]
[1744811957072,8.0104,124.85,124.83,0.05189837]
[1744811958371,8.0108,124.84,124.83,0.05189837]
[1744811960173,0.05540088,124.86,124.83,0.05189837]
[1744811960371,12.4647457,124.86,124.83,0.05189837]
[1744811961183,8.0108,124.84,124.83,0.05189837]
[1744811963781,8.0105,124.85,124.83,0.05189837]
[1744811964183,0.05540088,124.86,124.84,12.40934482]
[1744811964479,0.05540088,124.86,124.85,12.40934482]
[1744811964872,0.05540088,124.86,124.84,20.83414482]
[1744811965070,0.05540088,124.86,124.84,8.4248]
[1744811965479,0.05540088,124.86,124.83,0.05189837]
[1744811965480,12.4647457,124.86,124.83,0.05189837]
[1744811965873,8.0106,124.85,124.83,0.05189837]
[1744811966274,0.05540088,124.86,124.83,12.46124319]
[1744811966684,0.05540088,124.86,124.84,12.40934482]
[1744811966883,0.05540088,124.86,124.84,21.19774482]
[1744811967084,0.05540088,124.86,124.84,25.60324482]
[1744811967686,8.06500088,124.86,124.84,25.60324482]
[1744811967877,0.05540088,124.86,124.84,25.60324482]
[1744811969888,0.05540088,124.86,124.84,13.1939]
[1744811970184,8.06520088,124.86,124.84,13.1939]
[1744811970385,12.4647457,124.86,124.84,8.7884]
[1744811970787,8.0102,124.85,124.84,8.7884]
[1744811971086,0.05540088,124.86,124.84,8.7884]
[1744811972186,8.06500088,124.86,124.84,8.7884]
[1744811972579,12.40934482,124.85,124.83,0.05189837]
[1744811973289,8.0108,124.84,124.83,0.05189837]
[1744811973784,8.0105,124.85,124.83,0.05189837]
[1744811973988,8.0105,124.85,124.83,12.46124319]
[1744811974187,0.05540088,124.86,124.83,12.46124319]
[1744811974392,8.06520088,124.86,124.83,12.46124319]
[1744811974990,8.06520088,124.86,124.83,20.47264319]
[1744811975187,8.06520088,124.86,124.84,8.5696]
[1744811976285,8.0102,124.85,124.84,8.5696]
[1744811977390,8.06530088,124.86,124.84,8.5696]
[1744811978894,8.0102,124.85,124.84,8.5696]
[1744811979090,12.4647457,124.86,124.83,0.05189837]
[1744811979292,12.40934482,124.84,124.83,0.05189837]
[1744811979492,20.42014482,124.84,124.83,0.05189837]
[1744811988397,8.0131,124.81,124.79,8.6452]
[1744811988598,12.40934482,124.8,124.73,8.0174]
[1744811988793,12.40934482,124.77,124.74,8.4726]
[1744811988999,4.0585,124.85,124.74,8.4726]
[1744811989000,12.40934482,124.75,124.74,8.4726]
[1744811989202,12.40934482,124.75,124.74,4.1579]
[1744811990201,20.42594482,124.75,124.74,4.1579]
[1744811990800,8.0166,124.75,124.74,4.1579]
[1744811991395,16.0233,124.83,124.74,16.56724482]
[1744811991798,12.40934482,124.8,124.74,16.56724482]
[1744811992098,12.40934482,124.79,124.74,16.56724482]
[1744811992299,12.40934482,124.78,124.74,16.56724482]
[1744811992494,8.0157,124.77,124.74,16.56724482]
[1744811992698,8.07312071,124.77,124.75,0.06031614]
[1744811993299,8.016,124.76,124.75,0.06031614]
[1744811997700,20.42534482,124.76,124.75,0.06031614]
[1744811999098,20.42534482,124.76,124.71,8.5245]
[1744811999099,8.0183,124.73,124.71,8.5245]
[1744811999300,12.40934482,124.73,124.71,4.3147]
[1744811999605,8.0195,124.71,124.68,8.6282]
[1744811999808,12.40934482,124.69,124.63,4.4506]
[1744812000009,12.40934482,124.67,124.63,12.9756]
[1744812000308,593.1135,124.75,124.64,0.0561527]
[1744812000309,12.46519192,124.66,124.64,0.0561527]
[1744812000501,12.40934482,124.68,124.63,25.38494482]
[1744812000698,0.0530043,124.66,124.64,0.05200724]
[1744812000905,12.40934482,124.67,124.63,12.9756]
[1744812001104,12.40934482,124.66,124.63,12.9756]
[1744812001810,8.0235,124.65,124.63,12.9756]
[1744812002009,12.4699325,124.66,124.63,8.77255268]
[1744812002412,8.0234,124.65,124.63,8.77255268]
[1744812002814,20.43274482,124.65,124.63,8.77255268]
[1744812003010,0.06058768,124.66,124.63,21.1818975]
[1744812003314,12.40934482,124.73,124.65,12.40934482]
[1744812003507,8.0196,124.71,124.67,12.40934482]
[1744812003709,4.1812,124.79,124.69,12.40934482]
[1744812003911,8.017,124.75,124.71,12.40934482]
[1744812004211,8.017,124.75,124.63,366.2667]
[1744812004212,12.40934482,124.73,124.63,366.2667]
[1744812004412,8.0184,124.73,124.69,12.40934482]
[1744812004607,0.06140076,124.69,124.67,0.0598519]
[1744812004808,12.40934482,124.73,124.68,12.40934482]
[1744812005007,20.42774482,124.73,124.69,12.40934482]
[1744812005306,19.4337586,124.77,124.68,19.4337586]
[1744812005509,19.4337586,124.77,124.7,27.4532586]
[1744812005908,19.4337586,124.77,124.72,0.0508925]
[1744812006115,8.0173,124.74,124.72,0.0508925]
[1744812006310,0.05350703,124.75,124.72,0.0508925]
[1744812006711,0.05350703,124.75,124.72,4.0970925]
[1744812007213,0.05350703,124.75,124.72,12.1152925]
[1744812007414,0.05350703,124.75,124.72,4.0970925]
[1744812007611,8.015,124.78,124.73,19.4337586]
[1744812007821,19.4337586,124.83,124.75,19.4337586]
[1744812008205,8.0133,124.81,124.76,8.0157]
[1744812008413,8.0133,124.81,124.76,4.2005]
[1744812008609,8.0133,124.81,124.77,8.0152]
[1744812008815,8.0135,124.8,124.77,0.05884905]
[1744812009108,19.4337586,124.83,124.77,0.05884905]
[1744812009311,8.0147,124.78,124.77,0.05884905]
[1744812009510,19.4337586,124.79,124.71,4.2005]
[1744812009706,19.4337586,124.76,124.69,362.0]
[1744812009905,8.0178,124.74,124.7,4.2005]
[1744812010116,599.5779586,124.8,124.7,4.2005]
[1744812010117,580.1442,124.8,124.71,19.49362432]
[1744812010415,19.4337586,124.84,124.75,19.4337586]
[1744812010715,19.4337586,124.84,124.76,4.2005]
[1744812010915,8.0138,124.8,124.78,0.0591125]
[1744812011110,19.4337586,124.82,124.76,4.2005]
[1744812011317,19.4337586,124.8,124.78,0.05191714]
[1744812011614,19.4337586,124.8,124.76,4.2005]
[1744812011615,8.015,124.78,124.76,4.2005]
[1744812011816,19.4337586,124.82,124.76,4.25566537]
[1744812012011,19.4337586,124.82,124.76,4.2005]
[1744812012211,8.0124,124.82,124.78,0.06007035]
[1744812012412,19.4337586,124.84,124.78,0.06007035]
[1744812012806,580.1442,124.86,124.78,0.06007035]
[1744812013112,19.4337586,124.89,124.81,19.49474395]
[1744812013313,8.0099,124.86,124.81,19.4337586]
[1744812013611,8.0099,124.86,124.84,0.05697114]
[1744812013815,8.0086,124.88,124.84,0.05697114]
[1744812014311,596.7137586,124.93,124.84,0.05697114]
[1744812014615,577.28,124.93,124.87,19.49021812]
[1744812015011,577.28,124.93,124.87,27.49861812]
[1744812015212,577.28,124.93,124.87,19.49021812]
[1744812015418,596.7137586,124.93,124.87,0.05645952]
[1744812015615,577.28,124.93,124.87,19.49021812]
[1744812016120,8.006,124.92,124.87,27.49861812]
[1744812016518,577.28,124.93,124.87,19.49021812]
[1744812016722,8.0041,124.95,124.9,8.0066]
[1744812016919,19.4337586,124.98,124.89,19.4337586]
[1744812017219,30.99461378,124.98,124.91,0.05651767]
[1744812017722,8.0041,124.95,124.91,0.05651767]
[1744812018222,30.99461378,124.98,124.91,0.05651767]
[1744812019021,30.99461378,124.96,124.91,0.05651767]
[1744812019217,30.99461378,124.92,124.86,19.42]
[1744812019611,607.81461378,124.92,124.88,9.42e-05]
[1744812019816,30.99461378,124.89,124.86,15.5146]
[1744812020016,8.0109,124.84,124.79,8.0137]
[1744812020219,30.99461378,124.87,124.79,8.0137]
[1744812020824,0.0514942,124.84,124.82,0.06090433]
[1744812021821,607.81461378,124.92,124.82,0.06090433]
[1744812021822,30.99461378,124.96,124.83,30.99461378]
[1744812022120,8.0055,124.93,124.87,30.99461378]
[1744812022319,30.99461378,124.96,124.85,30.99461378]
[1744812022520,8.0063,124.92,124.85,30.99461378]
[1744812023021,8.0054,124.93,124.87,31.04986255]
[1744812023215,607.81461378,124.98,124.87,30.99461378]
[1744812023417,607.81461378,124.98,124.89,0.05405877]
[1744812023616,8.0049,124.94,124.89,8.0074]
[1744812023923,607.81461378,124.98,124.92,0.05937442]
[1744812024117,8.0061,124.92,124.86,8.0095]
[1744812024322,30.99461378,124.96,124.86,8.0095]
[1744812024521,30.99461378,124.96,124.88,0.05713757]
[1744812024718,30.99461378,124.96,124.91,0.05671235]
[1744812025214,8.0057,124.92,124.91,0.05671235]
[1744812025418,30.99461378,124.92,124.84,8.2171]
[1744812025618,30.99461378,124.9,124.84,4.1192]
[1744812026322,8.0099,124.86,124.84,4.1192]
[1744812026722,8.0099,124.86,124.84,4.17880243]
[1744812027318,0.0527703,124.88,124.84,0.05960243]
[1744812027722,8.0102,124.85,124.84,0.05960243]
[1744812029315,0.0527703,124.88,124.84,0.05960243]
[1744812029818,8.009,124.87,124.84,0.05960243]
[1744812030024,0.0527703,124.88,124.84,0.05960243]
[1744812030323,8.0102,124.85,124.84,0.05960243]
[1744812030522,0.0527703,124.88,124.84,0.05960243]
[1744812030915,8.009,124.87,124.84,0.05960243]
[1744812031115,0.0527703,124.88,124.84,0.05960243]
[1744812031726,8.0099,124.86,124.84,0.05960243]
[1744812031922,0.0527703,124.88,124.84,31.05421621]
[1744812032118,8.0067,124.91,124.86,8.0092]
[1744812032324,607.73461378,124.96,124.87,4.3171]
[1744812032925,8.0073,124.9,124.87,4.3171]
[1744812033322,8.0073,124.9,124.87,4.3779603]
[1744812034026,8.0066,124.91,124.87,4.3779603]
[1744812034220,8.0066,124.91,124.87,4.3171]
[1744812034417,576.74,124.96,124.88,0.05283957]
[1744812034620,8.0054,124.93,124.88,30.99461378]
[1744812034821,607.65461378,125.02,124.92,8.0057]
[1744812035018,30.99461378,125.0,124.88,30.99461378]
[1744812035218,30.99461378,124.98,124.88,30.99461378]
[1744812035828,30.99461378,124.98,124.87,4.3171]
[1744812036027,609.04753311,125.02,124.9,30.99461378]
[1744812036328,0.05366258,124.97,124.95,0.05580074]
[1744812036525,30.99461378,125.0,124.95,0.05580074]
[1744812036731,8.0032,124.96,124.95,7.4e-07]
[1744812037734,38.99781378,124.96,124.95,7.4e-07]
[1744812038629,30.99461378,124.96,124.87,366.3171]
[1744812038835,30.99461378,124.96,124.87,4.3171]
[1744812039331,8.006,124.92,124.87,12.3257]
[1744812039736,0.05789437,124.91,124.88,0.05848892]
[1744812039937,8.06449437,124.91,124.88,0.05848892]
[1744812040236,0.05789437,124.91,124.88,0.05848892]
[1744812040633,8.06449437,124.91,124.88,0.05848892]
[1744812040832,0.05789437,124.91,124.88,0.05848892]
[1744812041034,8.0071,124.9,124.88,0.05848892]
[1744812041538,8.06449437,124.91,124.88,0.05848892]
[1744812041839,0.05789437,124.91,124.88,0.05848892]
[1744812042437,8.06459437,124.91,124.88,0.05848892]
[1744812042637,0.05789437,124.91,124.88,0.05848892]
[1744812043039,0.05789437,124.91,124.88,8.06648892]
[1744812043434,0.05789437,124.91,124.88,0.05848892]
[1744812043734,383.26805784,125.08,124.88,0.05848892]
[1744812043937,607.65461378,125.02,124.9,30.99461378]
[1744812044141,607.65461378,125.02,124.91,8.4312]
[1744812044639,8.0041,124.95,124.91,16.4374]
[1744812045029,0.05438494,124.94,124.92,0.05608719]
[1744812045438,8.05898494,124.94,124.92,0.05608719]
[1744812046234,0.05438494,124.94,124.92,0.05608719]
[1744812047035,0.05438494,124.94,124.92,8.06178719]
[1744812047740,0.05438494,124.94,124.92,0.05608719]
[1744812048237,0.05438494,124.94,124.92,8.06168719]
[1744812048443,0.05438494,124.94,124.92,0.05608719]
[1744812048942,8.05908494,124.94,124.92,0.05608719]
[1744812049142,0.05438494,124.94,124.92,0.05608719]
[1744812049534,8.0051,124.93,124.92,8.719e-05]
[1744812049740,31.04899872,124.94,124.86,366.2163]
[1744812049941,30.99461378,124.92,124.86,4.2163]
[1744812050141,8.0074,124.9,124.86,4.2163]
[1744812050638,8.0077,124.89,124.86,4.2163]
[1744812050937,8.06255584,124.89,124.87,0.06156382]
[1744812051943,8.0083,124.88,124.87,0.06156382]
[1744812052242,0.05485584,124.89,124.87,0.06156382]
[1744812053633,8.06275584,124.89,124.87,0.06156382]
[1744812054136,0.05485584,124.89,124.87,0.06156382]
[1744812055745,8.0083,124.88,124.87,0.06156382]
[1744812056544,8.06285584,124.89,124.87,0.06156382]
[1744812056945,0.05485584,124.89,124.87,0.06156382]
[1744812057739,8.0083,124.88,124.87,0.06156382]
[1744812061049,8.0083,124.88,124.87,6.382e-05]
[1744812062652,39.00291378,124.88,124.87,6.382e-05]
[1744812062952,8.0125,124.82,124.79,4.1675]
[1744812063147,30.99461378,124.86,124.79,4.1675]
[1744812063345,8.0118,124.83,124.79,4.1675]
[1744812063543,30.99461378,124.86,124.79,4.1675]
[1744812063749,47.01421378,124.86,124.77,4.1605]
[1744812063950,0.0532391,124.83,124.8,0.05895585]
[1744812064953,1.39406321,124.93,124.82,30.99461378]
[1744812065145,607.47461378,124.94,124.84,30.99461378]
[1744812065349,623.48451378,124.94,124.84,30.99461378]
[1744812065751,623.48451378,124.94,124.83,12.2856]
[1744812065957,623.48451378,124.94,124.85,8.0099]
[1744812066150,0.05208446,124.9,124.87,0.0535807]
[1744812066955,8.0081,124.89,124.87,0.0535807]
[1744812067256,0.05208446,124.9,124.87,0.0535807]
[1744812067759,8.0081,124.89,124.87,0.0535807]
[1744812068056,0.05208446,124.9,124.87,0.0535807]
[1744812069656,0.05208446,124.9,124.88,8.0082]
[1744812069861,0.05208446,124.9,124.87,0.0535807]
[1744812070058,0.05208446,124.9,124.87,8.0623807]
[1744812070359,0.05208446,124.9,124.87,0.0535807]
[1744812070560,8.0079,124.89,124.87,0.0535807]
[1744812070854,0.05208446,124.9,124.87,0.0535807]
[1744812071159,8.05938446,124.9,124.87,0.0535807]
[1744812071560,0.05208446,124.9,124.87,0.0535807]
[1744812071860,30.99461378,124.88,124.87,8.07e-05]
[1744812072356,8.0083,124.88,124.87,8.07e-05]
[1744812072556,0.05208446,124.9,124.87,8.07e-05]
[1744812072758,8.0077,124.89,124.87,8.07e-05]
[1744812072958,0.05208446,124.9,124.87,8.07e-05]
[1744812073774,8.008,124.89,124.87,8.07e-05]
[1744812073965,0.05208446,124.9,124.87,8.07e-05]
[1744812074370,8.05938446,124.9,124.87,8.07e-05]
[1744812074569,0.05208446,124.9,124.87,8.07e-05]
[1744812075272,30.99461378,124.99,124.87,30.99469448]
[1744812075471,32.59474179,124.99,124.89,30.99461378]
[1744812075668,30.99461378,124.97,124.87,30.99461378]
[1744812075971,30.99461378,124.93,124.85,373.9267]
[1744812076275,0.05987978,124.9,124.88,0.05560499]
[1744812076662,8.0076,124.89,124.88,0.05560499]
[1744812076862,30.99461378,124.89,124.8,362.0]
[1744812077167,8.0098,124.86,124.8,370.013]
[1744812077366,30.99461378,124.89,124.8,362.0]
[1744812077771,8.0099,124.86,124.81,8.0126]
[1744812077974,0.05150554,124.86,124.83,0.05290427]
[1744812078566,576.54,124.92,124.83,31.04751805]
[1744812078869,8.0074,124.9,124.85,8.0099]
[1744812079065,576.54,124.92,124.85,8.0099]
[1744812079262,576.54,124.92,124.84,8.2194]
[1744812079573,8.0073,124.9,124.86,8.0092]
[1744812079771,0.06101483,124.89,124.87,0.06056848]
[1744812081470,8.0083,124.88,124.87,0.06056848]
[1744812082161,8.06901483,124.89,124.87,0.06056848]
[1744812082363,0.06101483,124.89,124.87,0.06056848]
[1744812082672,8.0083,124.88,124.87,0.06056848]
[1744812083068,0.06101483,124.89,124.87,0.06056848]
[1744812083775,8.06861483,124.89,124.87,0.06056848]
[1744812084475,16.0068,124.96,124.87,31.05518226]
[1744812084673,16.0068,124.96,124.86,4.0384]
[1744812084973,16.0068,124.96,124.86,12.0477]
[1744812085174,16.0068,124.96,124.86,4.0384]
[1744812085477,0.05482393,124.92,124.9,0.05966787]
[1744812085968,8.0064,124.91,124.9,0.05966787]
[1744812086170,0.05482393,124.92,124.9,0.05966787]
[1744812086875,607.57461378,124.98,124.9,0.05966787]
[1744812087076,607.57461378,124.98,124.87,30.99461378]
[1744812087769,607.57461378,124.98,124.9,8.007]
[1744812087974,607.57461378,124.98,124.93,0.05823309]
[1744812089274,576.58,124.98,124.93,0.05823309]
[1744812089675,8.0043,124.95,124.93,0.05823309]
[1744812089976,607.57461378,124.98,124.93,0.05823309]
[1744812090482,30.99461378,124.96,124.93,0.05823309]
[1744812091175,30.99461378,124.94,124.86,8.1723]
[1744812091374,30.99461378,124.9,124.85,362.0]
[1744812091574,8.0096,124.87,124.82,3.8657]
[1744812091780,30.99461378,124.88,124.82,3.8657]
[1744812092175,0.05205496,124.86,124.84,0.05058502]
[1744812092576,8.0073,124.9,124.85,8.0102]
[1744812092776,30.99461378,124.92,124.85,11.8731]
[1744812093071,30.99461378,124.92,124.85,3.8629]
[1744812093270,30.99461378,124.88,124.82,3.8657]
[1744812093476,30.99461378,124.88,124.79,3.8629]
[1744812093783,30.99461378,124.88,124.82,0.05741482]
[1744812094172,8.0096,124.86,124.82,0.05741482]
[1744812094375,8.0096,124.86,124.79,3.8629]
[1744812094580,8.0096,124.86,124.83,0.05273712]
[1744812094982,8.0102,124.85,124.83,0.05273712]
[1744812095280,30.99461378,124.9,124.83,0.05273712]
[1744812095673,8.0108,124.84,124.83,0.05273712]
[1744812096278,8.0107,124.85,124.83,0.05273712]
[1744812096680,607.53461378,124.9,124.83,0.05273712]
[1744812096984,8.0108,124.84,124.83,0.05273712]
[1744812097577,8.0108,124.84,124.83,3.712e-05]
[1744812100887,8.06121732,124.85,124.83,3.712e-05]
[1744812101185,0.05071732,124.85,124.83,3.712e-05]
[1744812101588,8.0108,124.84,124.83,3.712e-05]
[1744812101787,0.05071732,124.85,124.83,3.712e-05]
[1744812102692,8.06121732,124.85,124.83,3.712e-05]
[1744812102890,0.05071732,124.85,124.83,3.712e-05]
[1744812103290,8.0108,124.84,124.83,3.712e-05]
[1744812106592,39.00541378,124.84,124.83,3.712e-05]
[1744812107390,8.0152,124.78,124.74,362.0]
[1744812107584,30.99461378,124.82,124.74,362.0]
[1744812107788,30.99461378,124.84,124.76,4.2348]
[1744812107988,1.39451012,124.89,124.76,397.22941378]
[1744812108185,576.54,124.9,124.8,30.99461378]
[1744812108489,0.05122821,124.86,124.84,0.05945423]
[1744812111583,30.99461378,124.95,124.84,39.05406801]
[1744812111789,30.99461378,124.95,124.84,30.99461378]
[1744812112489,30.99461378,124.93,124.83,3.9505]
[1744812112796,8.0088,124.88,124.87,0.06079886]
[1744812113091,8.0081,124.89,124.86,0.05481014]
[1744812113293,30.99461378,124.91,124.86,0.05481014]
[1744812113789,30.99461378,124.93,124.86,0.05481014]
[1744812113994,30.99461378,124.93,124.83,3.9505]
[1744812113995,30.99461378,124.93,124.88,0.05931904]
[1744812114196,47.00261378,124.95,124.88,0.05931904]
[1744812114493,8.0073,124.9,124.88,0.05931904]
[1744812114894,8.0063,124.92,124.88,8.06761904]
[1744812115295,576.76,124.96,124.88,0.05931904]
[1744812115597,8.0048,124.94,124.91,0.06129659]
[1744812116092,8.0041,124.95,124.91,8.06759659]
[1744812116287,8.0041,124.95,124.88,30.99461378]
[1744812116596,30.99461378,124.99,124.92,0.06135467]
[1744812117396,30.99461378,124.97,124.92,0.06135467]
[1744812117600,30.99461378,124.97,124.89,16.1455]
[1744812117798,30.99461378,124.97,124.93,0.05050105]
[1744812118498,8.0044,124.94,124.93,0.05050105]
[1744812120003,30.99461378,124.99,124.93,0.05050105]
[1744812120199,30.99461378,124.99,124.95,0.05273444]
[1744812121496,8.002,124.98,124.95,0.05273444]
[1744812121699,30.99461378,124.99,124.95,0.05273444]
[1744812121999,30.99461378,124.97,124.95,0.05273444]
[1744812122299,8.0032,124.96,124.95,0.05273444]
[1744812122998,8.0061,124.92,124.89,3.9377]
[1744812123499,30.99461378,124.95,124.89,3.9377]
[1744812123700,8.0054,124.93,124.89,3.9377]
[1744812124101,0.05921042,124.92,124.9,0.05735952]
[1744812124401,8.06501042,124.92,124.9,0.05735952]
[1744812124600,0.05921042,124.92,124.9,0.05735952]
[1744812125096,30.99461378,124.98,124.9,0.05735952]
[1744812125297,30.99461378,124.98,124.91,8.0057]
[1744812125698,30.99461378,124.98,124.89,3.9377]
[1744812126303,30.99461378,124.98,124.92,0.05284542]
[1744812126801,8.0042,124.95,124.92,0.05284542]
[1744812127001,30.99461378,124.98,124.92,8.05844542]
[1744812127203,8.0034,124.96,124.92,8.05844542]
[1744812127905,8.0039,124.95,124.92,0.05284542]
[1744812128505,16.0008,125.01,124.92,8.05854542]
[1744812128706,30.99461378,125.0,124.95,0.05808802]
[1744812129110,35.00931378,125.0,124.95,0.05808802]
[1744812130009,35.00931378,125.0,124.89,3.9377]
[1744812130010,30.99461378,124.96,124.89,3.9377]
[1744812130211,30.99461378,124.94,124.87,4.0785]
[1744812130511,8.006,124.92,124.87,4.0785]
[1744812130910,8.006,124.92,124.87,12.0869]
[1744812131109,8.06631992,124.91,124.88,0.05360658]
[1744812131306,0.05991992,124.91,124.88,0.05360658]
[1744812131505,8.0076,124.89,124.88,0.05360658]
[1744812132310,0.05991992,124.91,124.88,0.05360658]
[1744812133303,30.99461378,124.9,124.8,30.99461378]
[1744812133509,30.99461378,124.9,124.81,8.0907]
[1744812133710,30.99461378,124.9,124.82,3.8996]
[1744812134009,30.99461378,124.9,124.82,11.9113]
[1744812134010,8.0097,124.86,124.82,11.9113]
[1744812134209,30.99461378,124.9,124.82,3.8996]
[1744812134410,8.0099,124.86,124.85,0.05812782]
[1744812136014,0.06062815,124.87,124.85,0.05812782]
[1744812136206,576.4,124.94,124.85,8.05812782]
[1744812136406,30.99461378,124.96,124.86,30.99461378]
[1744812136710,8.0059,124.92,124.87,4.0408]
[1744812136911,8.0059,124.92,124.88,3.8552]
[1744812137111,8.0059,124.92,124.89,8.0073]
[1744812137312,0.05395272,124.91,124.89,8.06834331]
[1744812137508,613.04133507,125.0,124.89,0.06104331]
[1744812137714,613.04133507,125.0,124.91,8.006]
[1744812137901,611.64791378,125.0,124.91,8.006]
[1744812138106,611.64791378,125.0,124.91,8.0059]
[1744812138515,580.6533,125.0,124.9,30.99461378]
[1744812138817,576.52,125.0,124.94,0.05315203]
[1744812139216,34.93051378,125.03,124.94,0.05315203]
[1744812139406,34.93051378,125.03,124.93,4.0733]
[1744812139604,8.0012,124.99,124.97,0.05134645]
[1744812141111,8.0009,125.0,124.97,0.05134645]
[1744812141310,34.93051378,125.03,124.97,0.05134645]
[1744812141711,8.0015,124.99,124.97,0.05134645]
[1744812141917,30.99461378,125.01,124.97,0.05134645]
[1744812142513,8.0019,124.98,124.97,0.05134645]
[1744812145017,8.0016,124.99,124.97,0.05134645]
[1744812145213,34.93051378,125.03,124.97,0.05134645]
[1744812146920,8.0019,124.98,124.97,0.05134645]
[1744812148221,34.93051378,125.03,124.97,0.05134645]
[1744812148222,30.99461378,125.01,124.97,0.05134645]
[1744812148520,8.0019,124.98,124.97,0.05134645]
[1744812149423,30.99461378,125.01,124.97,0.05134645]
[1744812149622,30.99461378,125.03,124.97,0.05134645]
[1744812149924,8.0019,124.98,124.97,0.05134645]
[1744812150517,30.99461378,124.99,124.88,4.0635]
[1744812150714,30.99461378,124.97,124.89,4.1579]
[1744812151125,8.0041,124.95,124.91,8.0061]
[1744812151324,30.99461378,124.97,124.89,4.1579]
[1744812151524,0.0608078,124.94,124.92,0.06010789]
[1744812154327,0.0608078,124.94,124.93,8.0051]
[1744812154626,0.0608078,124.94,124.92,0.06010789]
[1744812156228,8.0656078,124.94,124.92,0.06010789]
[1744812156527,0.0608078,124.94,124.92,0.06010789]
[1744812157524,8.0652078,124.94,124.92,0.06010789]
[1744812158228,8.0051,124.93,124.92,0.06010789]
[1744812158931,8.0066,124.91,124.84,30.99461378]
[1744812159133,8.0066,124.91,124.88,8.0081]
[1744812159725,30.99461378,124.93,124.85,11.8778]
[1744812159931,30.99461378,124.91,124.85,11.8778]
[1744812160130,0.05122913,124.9,124.88,0.05572564]
[1744812160732,8.0076,124.89,124.88,0.05572564]
[1744812161336,30.99461378,124.89,124.81,576.32]
[1744812161531,30.99461378,124.89,124.81,4.1146]
[1744812161834,30.99461378,124.87,124.81,12.1271]
[1744812162035,8.0106,124.85,124.81,4.1146]
[1744812162334,30.99461378,124.85,124.75,576.38]
[1744812162633,8.0117,124.83,124.77,4.1146]
[1744812162833,0.06095672,124.81,124.79,0.05438239]
[1744812163226,30.99461378,124.89,124.83,8.0113]
[1744812163430,4.1721,124.9,124.83,8.0113]
[1744812163627,8.0083,124.88,124.83,8.0113]
[1744812164437,0.05260307,124.87,124.84,0.0574157]
[1744812165833,30.99461378,124.85,124.84,0.0574157]
[1744812166133,39.00481378,124.85,124.84,0.0574157]
[1744812166435,39.00481378,124.85,124.77,4.1146]
[1744812166436,30.99461378,124.85,124.77,4.1146]
[1744812166937,30.99461378,124.87,124.77,4.1146]